{"text_format":"3","workbook":"xlsx","n_sheets":3,"sheets":["Potenciālo klientu dati","Prognozētais pārdošanas apjoms ","Mēneša svērtā prognoze"],"not_rendered":{"charts":1,"defined_names":10},"read":"whole","date_system":"1900"}

{"sheet":"Potenciālo klientu dati","index":0,"n_rows":9,"n_cols":10,"rows_kept":9}
[null,"Uzņēmuma nosaukums"]
[null,"Detalizēts potenciālo klientu žurnāls"]
[null,{"$f":"TODAY()","v":"2022-04-06"}]
[{"$nulls":8},{"$f":"Uzņēmuma_nosaukums","v":"Uzņēmuma nosaukums"},"KONFIDENCIĀLI"]
[null,"Potenciālā klienta vārds/nosaukums","Potenciālā klienta kontaktpersona","Potenciālā klienta \navots","Potenciālā klienta \nreģions","Potenciālā klienta \ntips","Potenciālais ieguvums","Pārdošanas \niespējamība","Prognoze \nbeidzas","Svērtā \nprognoze"]
[null,"A. Datum Corporation",{"$nulls":3},"Stratēģiskais",{"v":300000,"d":"300,000.00 EUR"},{"v":0.9,"d":"90%"},"Janvāris",{"$f":"IFERROR(IF(Potenciālā_klienta_dati[[#This Row],[Pārdošanas \niespējamība]]<>\"\",Potenciālā_klienta_dati[[#This Row],[Pārdošanas \niespējamība]]*Potenciālā_klienta_dati[[#This Row],[Potenciālais ieguvums]],\"\"),\"\")","v":{"v":270000,"d":"270,000.00 EUR"}}]
[null,"Adventure Works",{"$nulls":3},"Stratēģiskais",{"v":200000,"d":"200,000.00 EUR"},{"v":0.1,"d":"10%"},"Februāris",{"$f":"IFERROR(IF(Potenciālā_klienta_dati[[#This Row],[Pārdošanas \niespējamība]]<>\"\",Potenciālā_klienta_dati[[#This Row],[Pārdošanas \niespējamība]]*Potenciālā_klienta_dati[[#This Row],[Potenciālais ieguvums]],\"\"),\"\")","v":{"v":20000,"d":"20,000.00 EUR"}}]
[null,"Frankenberga viesnīca",{"$nulls":3},"Taktiskais",{"v":100000,"d":"100,000.00 EUR"},{"v":0.2,"d":"20%"},"Marts",{"$f":"IFERROR(IF(Potenciālā_klienta_dati[[#This Row],[Pārdošanas \niespējamība]]<>\"\",Potenciālā_klienta_dati[[#This Row],[Pārdošanas \niespējamība]]*Potenciālā_klienta_dati[[#This Row],[Potenciālais ieguvums]],\"\"),\"\")","v":{"v":20000,"d":"20,000.00 EUR"}}]
[null,"Kopsumma",{"$nulls":4},{"$f":"SUBTOTAL(109,Potenciālā_klienta_dati[Potenciālais ieguvums])","v":{"v":600000,"d":"600,000.00 EUR"}},null,null,{"$f":"SUBTOTAL(109,Potenciālā_klienta_dati[Svērtā \nprognoze])","v":{"v":310000,"d":"310,000.00 EUR"}}]

{"sheet":"Prognozētais pārdošanas apjoms ","index":1,"n_rows":21,"n_cols":14,"rows_kept":21,"merged":[[3,12,3,13]]}
[null,{"$f":"Uzņēmuma_nosaukums","v":"Uzņēmuma nosaukums"}]
[null,"Prognozētais pārdošanas apjoms"]
[null,{"$f":"TrackerDate","v":"2022-04-06"}]
[{"$nulls":11},{"$f":"Uzņēmuma_nosaukums","v":"Uzņēmuma nosaukums"},"KONFIDENCIĀLI"]
[null,"Potenciālā klienta vārds/nosaukums","Janvāris \nprognoze","Februāra \nprognoze","Marta \nprognoze","Aprīļa \nprognoze","Maija \nprognoze","Jūnija \nprognoze","Jūlija prognoze","Augusta \nprognoze","Septembra \nprognoze","Oktobra \nprognoze","Novembra \nprognoze","Decembra \nprognoze"]
[null,{"$f":"IFERROR(IF(AND(Potenciālā_klienta_dati[[#This Row],[Potenciālā klienta vārds/nosaukums]] <> \"\", ROW(Pārdošanas_prognozes[Potenciālā klienta vārds/nosaukums])<>Pēdējais_ieraksts),Potenciālā_klienta_dati[Potenciālā klienta vārds/nosaukums], \"\"),\"\")","v":"A. Datum Corporation"},{"$f":"IFERROR(IF(Potenciālā_klienta_dati[[#This Row],[Prognoze \nbeidzas]] <>\"\",IF(Potenciālā_klienta_dati[[#This Row],[Prognoze \nbeidzas]]= \"Janvāris\",Potenciālā_klienta_dati[Svērtā \nprognoze],0),\"\"),\"\")","v":{"v":270000,"d":"270,000 EUR"}},{"$f":"IFERROR(IF(Potenciālā_klienta_dati[[#This Row],[Prognoze \nbeidzas]] <>\"\",IF(Potenciālā_klienta_dati[[#This Row],[Prognoze \nbeidzas]] = \"Februāris\",Potenciālā_klienta_dati[Svērtā \nprognoze],0),\"\"),\"\")","v":{"v":0,"d":"0 EUR"}},{"$f":"IFERROR(IF(Potenciālā_klienta_dati[[#This Row],[Prognoze \nbeidzas]] <>\"\",IF(Potenciālā_klienta_dati[[#This Row],[Prognoze \nbeidzas]] = \"Marts\",Potenciālā_klienta_dati[Svērtā \nprognoze],0),\"\"),\"\")","v":{"v":0,"d":"0 EUR"}},{"$f":"IFERROR(IF(Potenciālā_klienta_dati[[#This Row],[Prognoze \nbeidzas]] <>\"\",IF(Potenciālā_klienta_dati[[#This Row],[Prognoze \nbeidzas]] = \"Aprīļa\",Potenciālā_klienta_dati[Svērtā \nprognoze],0),\"\"),\"\")","v":{"v":0,"d":"0 EUR"}},{"$f":"IFERROR(IF(Potenciālā_klienta_dati[[#This Row],[Prognoze \nbeidzas]] <>\"\",IF(Potenciālā_klienta_dati[[#This Row],[Prognoze \nbeidzas]] = \"Maija\",Potenciālā_klienta_dati[Svērtā \nprognoze],0),\"\"),\"\")","v":{"v":0,"d":"0 EUR"}},{"$f":"IFERROR(IF(Potenciālā_klienta_dati[[#This Row],[Prognoze \nbeidzas]] <>\"\",IF(Potenciālā_klienta_dati[[#This Row],[Prognoze \nbeidzas]] = \"Jūnija\",Potenciālā_klienta_dati[Svērtā \nprognoze],0),\"\"),\"\")","v":{"v":0,"d":"0 EUR"}},{"$f":"IFERROR(IF(Potenciālā_klienta_dati[[#This Row],[Prognoze \nbeidzas]] <>\"\",IF(Potenciālā_klienta_dati[[#This Row],[Prognoze \nbeidzas]] = \"July\",Potenciālā_klienta_dati[Svērtā \nprognoze],0),\"\"),\"\")","v":{"v":0,"d":"0 EUR"}},{"$f":"IFERROR(IF(Potenciālā_klienta_dati[[#This Row],[Prognoze \nbeidzas]] <>\"\",IF(Potenciālā_klienta_dati[[#This Row],[Prognoze \nbeidzas]] = \"Augusta\",Potenciālā_klienta_dati[Svērtā \nprognoze],0),\"\"),\"\")","v":{"v":0,"d":"0 EUR"}},{"$f":"IFERROR(IF(Potenciālā_klienta_dati[[#This Row],[Prognoze \nbeidzas]] <>\"\",IF(Potenciālā_klienta_dati[[#This Row],[Prognoze \nbeidzas]] = \"Septembra\",Potenciālā_klienta_dati[Svērtā \nprognoze],0),\"\"),\"\")","v":{"v":0,"d":"0 EUR"}},{"$f":"IFERROR(IF(Potenciālā_klienta_dati[[#This Row],[Prognoze \nbeidzas]] <>\"\",IF(Potenciālā_klienta_dati[[#This Row],[Prognoze \nbeidzas]] = \"Oktobra\",Potenciālā_klienta_dati[Svērtā \nprognoze],0),\"\"),\"\")","v":{"v":0,"d":"0 EUR"}},{"$f":"IFERROR(IF(Potenciālā_klienta_dati[[#This Row],[Prognoze \nbeidzas]] <>\"\",IF(Potenciālā_klienta_dati[[#This Row],[Prognoze \nbeidzas]] = \"Novembra\",Potenciālā_klienta_dati[Svērtā \nprognoze],0),\"\"),\"\")","v":{"v":0,"d":"0 EUR"}},{"$f":"IFERROR(IF(Potenciālā_klienta_dati[[#This Row],[Prognoze \nbeidzas]] <>\"\",IF(Potenciālā_klienta_dati[[#This Row],[Prognoze \nbeidzas]] = \"Decembra\",Potenciālā_klienta_dati[Svērtā \nprognoze],0),\"\"),\"\")","v":{"v":0,"d":"0 EUR"}}]
[null,{"$f":"IFERROR(IF(AND(Potenciālā_klienta_dati[[#This Row],[Potenciālā klienta vārds/nosaukums]] <> \"\", ROW(Pārdošanas_prognozes[Potenciālā klienta vārds/nosaukums])<>Pēdējais_ieraksts),Potenciālā_klienta_dati[Potenciālā klienta vārds/nosaukums], \"\"),\"\")","v":"Adventure Works"},{"$f":"IFERROR(IF(Potenciālā_klienta_dati[[#This Row],[Prognoze \nbeidzas]] <>\"\",IF(Potenciālā_klienta_dati[[#This Row],[Prognoze \nbeidzas]]= \"Janvāris\",Potenciālā_klienta_dati[Svērtā \nprognoze],0),\"\"),\"\")","v":{"v":0,"d":"0 EUR"}},{"$f":"IFERROR(IF(Potenciālā_klienta_dati[[#This Row],[Prognoze \nbeidzas]] <>\"\",IF(Potenciālā_klienta_dati[[#This Row],[Prognoze \nbeidzas]] = \"Februāris\",Potenciālā_klienta_dati[Svērtā \nprognoze],0),\"\"),\"\")","v":{"v":20000,"d":"20,000 EUR"}},{"$f":"IFERROR(IF(Potenciālā_klienta_dati[[#This Row],[Prognoze \nbeidzas]] <>\"\",IF(Potenciālā_klienta_dati[[#This Row],[Prognoze \nbeidzas]] = \"Marts\",Potenciālā_klienta_dati[Svērtā \nprognoze],0),\"\"),\"\")","v":{"v":0,"d":"0 EUR"}},{"$f":"IFERROR(IF(Potenciālā_klienta_dati[[#This Row],[Prognoze \nbeidzas]] <>\"\",IF(Potenciālā_klienta_dati[[#This Row],[Prognoze \nbeidzas]] = \"Aprīļa\",Potenciālā_klienta_dati[Svērtā \nprognoze],0),\"\"),\"\")","v":{"v":0,"d":"0 EUR"}},{"$f":"IFERROR(IF(Potenciālā_klienta_dati[[#This Row],[Prognoze \nbeidzas]] <>\"\",IF(Potenciālā_klienta_dati[[#This Row],[Prognoze \nbeidzas]] = \"Maija\",Potenciālā_klienta_dati[Svērtā \nprognoze],0),\"\"),\"\")","v":{"v":0,"d":"0 EUR"}},{"$f":"IFERROR(IF(Potenciālā_klienta_dati[[#This Row],[Prognoze \nbeidzas]] <>\"\",IF(Potenciālā_klienta_dati[[#This Row],[Prognoze \nbeidzas]] = \"Jūnija\",Potenciālā_klienta_dati[Svērtā \nprognoze],0),\"\"),\"\")","v":{"v":0,"d":"0 EUR"}},{"$f":"IFERROR(IF(Potenciālā_klienta_dati[[#This Row],[Prognoze \nbeidzas]] <>\"\",IF(Potenciālā_klienta_dati[[#This Row],[Prognoze \nbeidzas]] = \"July\",Potenciālā_klienta_dati[Svērtā \nprognoze],0),\"\"),\"\")","v":{"v":0,"d":"0 EUR"}},{"$f":"IFERROR(IF(Potenciālā_klienta_dati[[#This Row],[Prognoze \nbeidzas]] <>\"\",IF(Potenciālā_klienta_dati[[#This Row],[Prognoze \nbeidzas]] = \"Augusta\",Potenciālā_klienta_dati[Svērtā \nprognoze],0),\"\"),\"\")","v":{"v":0,"d":"0 EUR"}},{"$f":"IFERROR(IF(Potenciālā_klienta_dati[[#This Row],[Prognoze \nbeidzas]] <>\"\",IF(Potenciālā_klienta_dati[[#This Row],[Prognoze \nbeidzas]] = \"Septembra\",Potenciālā_klienta_dati[Svērtā \nprognoze],0),\"\"),\"\")","v":{"v":0,"d":"0 EUR"}},{"$f":"IFERROR(IF(Potenciālā_klienta_dati[[#This Row],[Prognoze \nbeidzas]] <>\"\",IF(Potenciālā_klienta_dati[[#This Row],[Prognoze \nbeidzas]] = \"Oktobra\",Potenciālā_klienta_dati[Svērtā \nprognoze],0),\"\"),\"\")","v":{"v":0,"d":"0 EUR"}},{"$f":"IFERROR(IF(Potenciālā_klienta_dati[[#This Row],[Prognoze \nbeidzas]] <>\"\",IF(Potenciālā_klienta_dati[[#This Row],[Prognoze \nbeidzas]] = \"Novembra\",Potenciālā_klienta_dati[Svērtā \nprognoze],0),\"\"),\"\")","v":{"v":0,"d":"0 EUR"}},{"$f":"IFERROR(IF(Potenciālā_klienta_dati[[#This Row],[Prognoze \nbeidzas]] <>\"\",IF(Potenciālā_klienta_dati[[#This Row],[Prognoze \nbeidzas]] = \"Decembra\",Potenciālā_klienta_dati[Svērtā \nprognoze],0),\"\"),\"\")","v":{"v":0,"d":"0 EUR"}}]
[null,{"$f":"IFERROR(IF(AND(Potenciālā_klienta_dati[[#This Row],[Potenciālā klienta vārds/nosaukums]] <> \"\", ROW(Pārdošanas_prognozes[Potenciālā klienta vārds/nosaukums])<>Pēdējais_ieraksts),Potenciālā_klienta_dati[Potenciālā klienta vārds/nosaukums], \"\"),\"\")","v":"Frankenberga viesnīca"},{"$f":"IFERROR(IF(Potenciālā_klienta_dati[[#This Row],[Prognoze \nbeidzas]] <>\"\",IF(Potenciālā_klienta_dati[[#This Row],[Prognoze \nbeidzas]]= \"Janvāris\",Potenciālā_klienta_dati[Svērtā \nprognoze],0),\"\"),\"\")","v":{"v":0,"d":"0 EUR"}},{"$f":"IFERROR(IF(Potenciālā_klienta_dati[[#This Row],[Prognoze \nbeidzas]] <>\"\",IF(Potenciālā_klienta_dati[[#This Row],[Prognoze \nbeidzas]] = \"Februāris\",Potenciālā_klienta_dati[Svērtā \nprognoze],0),\"\"),\"\")","v":{"v":0,"d":"0 EUR"}},{"$f":"IFERROR(IF(Potenciālā_klienta_dati[[#This Row],[Prognoze \nbeidzas]] <>\"\",IF(Potenciālā_klienta_dati[[#This Row],[Prognoze \nbeidzas]] = \"Marts\",Potenciālā_klienta_dati[Svērtā \nprognoze],0),\"\"),\"\")","v":{"v":20000,"d":"20,000 EUR"}},{"$f":"IFERROR(IF(Potenciālā_klienta_dati[[#This Row],[Prognoze \nbeidzas]] <>\"\",IF(Potenciālā_klienta_dati[[#This Row],[Prognoze \nbeidzas]] = \"Aprīļa\",Potenciālā_klienta_dati[Svērtā \nprognoze],0),\"\"),\"\")","v":{"v":0,"d":"0 EUR"}},{"$f":"IFERROR(IF(Potenciālā_klienta_dati[[#This Row],[Prognoze \nbeidzas]] <>\"\",IF(Potenciālā_klienta_dati[[#This Row],[Prognoze \nbeidzas]] = \"Maija\",Potenciālā_klienta_dati[Svērtā \nprognoze],0),\"\"),\"\")","v":{"v":0,"d":"0 EUR"}},{"$f":"IFERROR(IF(Potenciālā_klienta_dati[[#This Row],[Prognoze \nbeidzas]] <>\"\",IF(Potenciālā_klienta_dati[[#This Row],[Prognoze \nbeidzas]] = \"Jūnija\",Potenciālā_klienta_dati[Svērtā \nprognoze],0),\"\"),\"\")","v":{"v":0,"d":"0 EUR"}},{"$f":"IFERROR(IF(Potenciālā_klienta_dati[[#This Row],[Prognoze \nbeidzas]] <>\"\",IF(Potenciālā_klienta_dati[[#This Row],[Prognoze \nbeidzas]] = \"July\",Potenciālā_klienta_dati[Svērtā \nprognoze],0),\"\"),\"\")","v":{"v":0,"d":"0 EUR"}},{"$f":"IFERROR(IF(Potenciālā_klienta_dati[[#This Row],[Prognoze \nbeidzas]] <>\"\",IF(Potenciālā_klienta_dati[[#This Row],[Prognoze \nbeidzas]] = \"Augusta\",Potenciālā_klienta_dati[Svērtā \nprognoze],0),\"\"),\"\")","v":{"v":0,"d":"0 EUR"}},{"$f":"IFERROR(IF(Potenciālā_klienta_dati[[#This Row],[Prognoze \nbeidzas]] <>\"\",IF(Potenciālā_klienta_dati[[#This Row],[Prognoze \nbeidzas]] = \"Septembra\",Potenciālā_klienta_dati[Svērtā \nprognoze],0),\"\"),\"\")","v":{"v":0,"d":"0 EUR"}},{"$f":"IFERROR(IF(Potenciālā_klienta_dati[[#This Row],[Prognoze \nbeidzas]] <>\"\",IF(Potenciālā_klienta_dati[[#This Row],[Prognoze \nbeidzas]] = \"Oktobra\",Potenciālā_klienta_dati[Svērtā \nprognoze],0),\"\"),\"\")","v":{"v":0,"d":"0 EUR"}},{"$f":"IFERROR(IF(Potenciālā_klienta_dati[[#This Row],[Prognoze \nbeidzas]] <>\"\",IF(Potenciālā_klienta_dati[[#This Row],[Prognoze \nbeidzas]] = \"Novembra\",Potenciālā_klienta_dati[Svērtā \nprognoze],0),\"\"),\"\")","v":{"v":0,"d":"0 EUR"}},{"$f":"IFERROR(IF(Potenciālā_klienta_dati[[#This Row],[Prognoze \nbeidzas]] <>\"\",IF(Potenciālā_klienta_dati[[#This Row],[Prognoze \nbeidzas]] = \"Decembra\",Potenciālā_klienta_dati[Svērtā \nprognoze],0),\"\"),\"\")","v":{"v":0,"d":"0 EUR"}}]
[null,{"$f":"IFERROR(IF(AND(Potenciālā_klienta_dati[[#This Row],[Potenciālā klienta vārds/nosaukums]] <> \"\", ROW(Pārdošanas_prognozes[Potenciālā klienta vārds/nosaukums])<>Pēdējais_ieraksts),Potenciālā_klienta_dati[Potenciālā klienta vārds/nosaukums], \"\"),\"\")","v":""},{"$f":"IFERROR(IF(Potenciālā_klienta_dati[[#This Row],[Prognoze \nbeidzas]] <>\"\",IF(Potenciālā_klienta_dati[[#This Row],[Prognoze \nbeidzas]]= \"Janvāris\",Potenciālā_klienta_dati[Svērtā \nprognoze],0),\"\"),\"\")","v":""},{"$f":"IFERROR(IF(Potenciālā_klienta_dati[[#This Row],[Prognoze \nbeidzas]] <>\"\",IF(Potenciālā_klienta_dati[[#This Row],[Prognoze \nbeidzas]] = \"Februāris\",Potenciālā_klienta_dati[Svērtā \nprognoze],0),\"\"),\"\")","v":""},{"$f":"IFERROR(IF(Potenciālā_klienta_dati[[#This Row],[Prognoze \nbeidzas]] <>\"\",IF(Potenciālā_klienta_dati[[#This Row],[Prognoze \nbeidzas]] = \"Marts\",Potenciālā_klienta_dati[Svērtā \nprognoze],0),\"\"),\"\")","v":""},{"$f":"IFERROR(IF(Potenciālā_klienta_dati[[#This Row],[Prognoze \nbeidzas]] <>\"\",IF(Potenciālā_klienta_dati[[#This Row],[Prognoze \nbeidzas]] = \"Aprīļa\",Potenciālā_klienta_dati[Svērtā \nprognoze],0),\"\"),\"\")","v":""},{"$f":"IFERROR(IF(Potenciālā_klienta_dati[[#This Row],[Prognoze \nbeidzas]] <>\"\",IF(Potenciālā_klienta_dati[[#This Row],[Prognoze \nbeidzas]] = \"Maija\",Potenciālā_klienta_dati[Svērtā \nprognoze],0),\"\"),\"\")","v":""},{"$f":"IFERROR(IF(Potenciālā_klienta_dati[[#This Row],[Prognoze \nbeidzas]] <>\"\",IF(Potenciālā_klienta_dati[[#This Row],[Prognoze \nbeidzas]] = \"Jūnija\",Potenciālā_klienta_dati[Svērtā \nprognoze],0),\"\"),\"\")","v":""},{"$f":"IFERROR(IF(Potenciālā_klienta_dati[[#This Row],[Prognoze \nbeidzas]] <>\"\",IF(Potenciālā_klienta_dati[[#This Row],[Prognoze \nbeidzas]] = \"July\",Potenciālā_klienta_dati[Svērtā \nprognoze],0),\"\"),\"\")","v":""},{"$f":"IFERROR(IF(Potenciālā_klienta_dati[[#This Row],[Prognoze \nbeidzas]] <>\"\",IF(Potenciālā_klienta_dati[[#This Row],[Prognoze \nbeidzas]] = \"Augusta\",Potenciālā_klienta_dati[Svērtā \nprognoze],0),\"\"),\"\")","v":""},{"$f":"IFERROR(IF(Potenciālā_klienta_dati[[#This Row],[Prognoze \nbeidzas]] <>\"\",IF(Potenciālā_klienta_dati[[#This Row],[Prognoze \nbeidzas]] = \"Septembra\",Potenciālā_klienta_dati[Svērtā \nprognoze],0),\"\"),\"\")","v":""},{"$f":"IFERROR(IF(Potenciālā_klienta_dati[[#This Row],[Prognoze \nbeidzas]] <>\"\",IF(Potenciālā_klienta_dati[[#This Row],[Prognoze \nbeidzas]] = \"Oktobra\",Potenciālā_klienta_dati[Svērtā \nprognoze],0),\"\"),\"\")","v":""},{"$f":"IFERROR(IF(Potenciālā_klienta_dati[[#This Row],[Prognoze \nbeidzas]] <>\"\",IF(Potenciālā_klienta_dati[[#This Row],[Prognoze \nbeidzas]] = \"Novembra\",Potenciālā_klienta_dati[Svērtā \nprognoze],0),\"\"),\"\")","v":""},{"$f":"IFERROR(IF(Potenciālā_klienta_dati[[#This Row],[Prognoze \nbeidzas]] <>\"\",IF(Potenciālā_klienta_dati[[#This Row],[Prognoze \nbeidzas]] = \"Decembra\",Potenciālā_klienta_dati[Svērtā \nprognoze],0),\"\"),\"\")","v":""}]
[null,{"$f":"IFERROR(IF(AND(Potenciālā_klienta_dati[[#This Row],[Potenciālā klienta vārds/nosaukums]] <> \"\", ROW(Pārdošanas_prognozes[Potenciālā klienta vārds/nosaukums])<>Pēdējais_ieraksts),Potenciālā_klienta_dati[Potenciālā klienta vārds/nosaukums], \"\"),\"\")","v":""},{"$f":"IFERROR(IF(Potenciālā_klienta_dati[[#This Row],[Prognoze \nbeidzas]] <>\"\",IF(Potenciālā_klienta_dati[[#This Row],[Prognoze \nbeidzas]]= \"Janvāris\",Potenciālā_klienta_dati[Svērtā \nprognoze],0),\"\"),\"\")","v":""},{"$f":"IFERROR(IF(Potenciālā_klienta_dati[[#This Row],[Prognoze \nbeidzas]] <>\"\",IF(Potenciālā_klienta_dati[[#This Row],[Prognoze \nbeidzas]] = \"Februāris\",Potenciālā_klienta_dati[Svērtā \nprognoze],0),\"\"),\"\")","v":""},{"$f":"IFERROR(IF(Potenciālā_klienta_dati[[#This Row],[Prognoze \nbeidzas]] <>\"\",IF(Potenciālā_klienta_dati[[#This Row],[Prognoze \nbeidzas]] = \"Marts\",Potenciālā_klienta_dati[Svērtā \nprognoze],0),\"\"),\"\")","v":""},{"$f":"IFERROR(IF(Potenciālā_klienta_dati[[#This Row],[Prognoze \nbeidzas]] <>\"\",IF(Potenciālā_klienta_dati[[#This Row],[Prognoze \nbeidzas]] = \"Aprīļa\",Potenciālā_klienta_dati[Svērtā \nprognoze],0),\"\"),\"\")","v":""},{"$f":"IFERROR(IF(Potenciālā_klienta_dati[[#This Row],[Prognoze \nbeidzas]] <>\"\",IF(Potenciālā_klienta_dati[[#This Row],[Prognoze \nbeidzas]] = \"Maija\",Potenciālā_klienta_dati[Svērtā \nprognoze],0),\"\"),\"\")","v":""},{"$f":"IFERROR(IF(Potenciālā_klienta_dati[[#This Row],[Prognoze \nbeidzas]] <>\"\",IF(Potenciālā_klienta_dati[[#This Row],[Prognoze \nbeidzas]] = \"Jūnija\",Potenciālā_klienta_dati[Svērtā \nprognoze],0),\"\"),\"\")","v":""},{"$f":"IFERROR(IF(Potenciālā_klienta_dati[[#This Row],[Prognoze \nbeidzas]] <>\"\",IF(Potenciālā_klienta_dati[[#This Row],[Prognoze \nbeidzas]] = \"July\",Potenciālā_klienta_dati[Svērtā \nprognoze],0),\"\"),\"\")","v":""},{"$f":"IFERROR(IF(Potenciālā_klienta_dati[[#This Row],[Prognoze \nbeidzas]] <>\"\",IF(Potenciālā_klienta_dati[[#This Row],[Prognoze \nbeidzas]] = \"Augusta\",Potenciālā_klienta_dati[Svērtā \nprognoze],0),\"\"),\"\")","v":""},{"$f":"IFERROR(IF(Potenciālā_klienta_dati[[#This Row],[Prognoze \nbeidzas]] <>\"\",IF(Potenciālā_klienta_dati[[#This Row],[Prognoze \nbeidzas]] = \"Septembra\",Potenciālā_klienta_dati[Svērtā \nprognoze],0),\"\"),\"\")","v":""},{"$f":"IFERROR(IF(Potenciālā_klienta_dati[[#This Row],[Prognoze \nbeidzas]] <>\"\",IF(Potenciālā_klienta_dati[[#This Row],[Prognoze \nbeidzas]] = \"Oktobra\",Potenciālā_klienta_dati[Svērtā \nprognoze],0),\"\"),\"\")","v":""},{"$f":"IFERROR(IF(Potenciālā_klienta_dati[[#This Row],[Prognoze \nbeidzas]] <>\"\",IF(Potenciālā_klienta_dati[[#This Row],[Prognoze \nbeidzas]] = \"Novembra\",Potenciālā_klienta_dati[Svērtā \nprognoze],0),\"\"),\"\")","v":""},{"$f":"IFERROR(IF(Potenciālā_klienta_dati[[#This Row],[Prognoze \nbeidzas]] <>\"\",IF(Potenciālā_klienta_dati[[#This Row],[Prognoze \nbeidzas]] = \"Decembra\",Potenciālā_klienta_dati[Svērtā \nprognoze],0),\"\"),\"\")","v":""}]
[null,{"$f":"IFERROR(IF(AND(Potenciālā_klienta_dati[[#This Row],[Potenciālā klienta vārds/nosaukums]] <> \"\", ROW(Pārdošanas_prognozes[Potenciālā klienta vārds/nosaukums])<>Pēdējais_ieraksts),Potenciālā_klienta_dati[Potenciālā klienta vārds/nosaukums], \"\"),\"\")","v":""},{"$f":"IFERROR(IF(Potenciālā_klienta_dati[[#This Row],[Prognoze \nbeidzas]] <>\"\",IF(Potenciālā_klienta_dati[[#This Row],[Prognoze \nbeidzas]]= \"Janvāris\",Potenciālā_klienta_dati[Svērtā \nprognoze],0),\"\"),\"\")","v":""},{"$f":"IFERROR(IF(Potenciālā_klienta_dati[[#This Row],[Prognoze \nbeidzas]] <>\"\",IF(Potenciālā_klienta_dati[[#This Row],[Prognoze \nbeidzas]] = \"Februāris\",Potenciālā_klienta_dati[Svērtā \nprognoze],0),\"\"),\"\")","v":""},{"$f":"IFERROR(IF(Potenciālā_klienta_dati[[#This Row],[Prognoze \nbeidzas]] <>\"\",IF(Potenciālā_klienta_dati[[#This Row],[Prognoze \nbeidzas]] = \"Marts\",Potenciālā_klienta_dati[Svērtā \nprognoze],0),\"\"),\"\")","v":""},{"$f":"IFERROR(IF(Potenciālā_klienta_dati[[#This Row],[Prognoze \nbeidzas]] <>\"\",IF(Potenciālā_klienta_dati[[#This Row],[Prognoze \nbeidzas]] = \"Aprīļa\",Potenciālā_klienta_dati[Svērtā \nprognoze],0),\"\"),\"\")","v":""},{"$f":"IFERROR(IF(Potenciālā_klienta_dati[[#This Row],[Prognoze \nbeidzas]] <>\"\",IF(Potenciālā_klienta_dati[[#This Row],[Prognoze \nbeidzas]] = \"Maija\",Potenciālā_klienta_dati[Svērtā \nprognoze],0),\"\"),\"\")","v":""},{"$f":"IFERROR(IF(Potenciālā_klienta_dati[[#This Row],[Prognoze \nbeidzas]] <>\"\",IF(Potenciālā_klienta_dati[[#This Row],[Prognoze \nbeidzas]] = \"Jūnija\",Potenciālā_klienta_dati[Svērtā \nprognoze],0),\"\"),\"\")","v":""},{"$f":"IFERROR(IF(Potenciālā_klienta_dati[[#This Row],[Prognoze \nbeidzas]] <>\"\",IF(Potenciālā_klienta_dati[[#This Row],[Prognoze \nbeidzas]] = \"July\",Potenciālā_klienta_dati[Svērtā \nprognoze],0),\"\"),\"\")","v":""},{"$f":"IFERROR(IF(Potenciālā_klienta_dati[[#This Row],[Prognoze \nbeidzas]] <>\"\",IF(Potenciālā_klienta_dati[[#This Row],[Prognoze \nbeidzas]] = \"Augusta\",Potenciālā_klienta_dati[Svērtā \nprognoze],0),\"\"),\"\")","v":""},{"$f":"IFERROR(IF(Potenciālā_klienta_dati[[#This Row],[Prognoze \nbeidzas]] <>\"\",IF(Potenciālā_klienta_dati[[#This Row],[Prognoze \nbeidzas]] = \"Septembra\",Potenciālā_klienta_dati[Svērtā \nprognoze],0),\"\"),\"\")","v":""},{"$f":"IFERROR(IF(Potenciālā_klienta_dati[[#This Row],[Prognoze \nbeidzas]] <>\"\",IF(Potenciālā_klienta_dati[[#This Row],[Prognoze \nbeidzas]] = \"Oktobra\",Potenciālā_klienta_dati[Svērtā \nprognoze],0),\"\"),\"\")","v":""},{"$f":"IFERROR(IF(Potenciālā_klienta_dati[[#This Row],[Prognoze \nbeidzas]] <>\"\",IF(Potenciālā_klienta_dati[[#This Row],[Prognoze \nbeidzas]] = \"Novembra\",Potenciālā_klienta_dati[Svērtā \nprognoze],0),\"\"),\"\")","v":""},{"$f":"IFERROR(IF(Potenciālā_klienta_dati[[#This Row],[Prognoze \nbeidzas]] <>\"\",IF(Potenciālā_klienta_dati[[#This Row],[Prognoze \nbeidzas]] = \"Decembra\",Potenciālā_klienta_dati[Svērtā \nprognoze],0),\"\"),\"\")","v":""}]
[null,{"$f":"IFERROR(IF(AND(Potenciālā_klienta_dati[[#This Row],[Potenciālā klienta vārds/nosaukums]] <> \"\", ROW(Pārdošanas_prognozes[Potenciālā klienta vārds/nosaukums])<>Pēdējais_ieraksts),Potenciālā_klienta_dati[Potenciālā klienta vārds/nosaukums], \"\"),\"\")","v":""},{"$f":"IFERROR(IF(Potenciālā_klienta_dati[[#This Row],[Prognoze \nbeidzas]] <>\"\",IF(Potenciālā_klienta_dati[[#This Row],[Prognoze \nbeidzas]]= \"Janvāris\",Potenciālā_klienta_dati[Svērtā \nprognoze],0),\"\"),\"\")","v":""},{"$f":"IFERROR(IF(Potenciālā_klienta_dati[[#This Row],[Prognoze \nbeidzas]] <>\"\",IF(Potenciālā_klienta_dati[[#This Row],[Prognoze \nbeidzas]] = \"Februāris\",Potenciālā_klienta_dati[Svērtā \nprognoze],0),\"\"),\"\")","v":""},{"$f":"IFERROR(IF(Potenciālā_klienta_dati[[#This Row],[Prognoze \nbeidzas]] <>\"\",IF(Potenciālā_klienta_dati[[#This Row],[Prognoze \nbeidzas]] = \"Marts\",Potenciālā_klienta_dati[Svērtā \nprognoze],0),\"\"),\"\")","v":""},{"$f":"IFERROR(IF(Potenciālā_klienta_dati[[#This Row],[Prognoze \nbeidzas]] <>\"\",IF(Potenciālā_klienta_dati[[#This Row],[Prognoze \nbeidzas]] = \"Aprīļa\",Potenciālā_klienta_dati[Svērtā \nprognoze],0),\"\"),\"\")","v":""},{"$f":"IFERROR(IF(Potenciālā_klienta_dati[[#This Row],[Prognoze \nbeidzas]] <>\"\",IF(Potenciālā_klienta_dati[[#This Row],[Prognoze \nbeidzas]] = \"Maija\",Potenciālā_klienta_dati[Svērtā \nprognoze],0),\"\"),\"\")","v":""},{"$f":"IFERROR(IF(Potenciālā_klienta_dati[[#This Row],[Prognoze \nbeidzas]] <>\"\",IF(Potenciālā_klienta_dati[[#This Row],[Prognoze \nbeidzas]] = \"Jūnija\",Potenciālā_klienta_dati[Svērtā \nprognoze],0),\"\"),\"\")","v":""},{"$f":"IFERROR(IF(Potenciālā_klienta_dati[[#This Row],[Prognoze \nbeidzas]] <>\"\",IF(Potenciālā_klienta_dati[[#This Row],[Prognoze \nbeidzas]] = \"July\",Potenciālā_klienta_dati[Svērtā \nprognoze],0),\"\"),\"\")","v":""},{"$f":"IFERROR(IF(Potenciālā_klienta_dati[[#This Row],[Prognoze \nbeidzas]] <>\"\",IF(Potenciālā_klienta_dati[[#This Row],[Prognoze \nbeidzas]] = \"Augusta\",Potenciālā_klienta_dati[Svērtā \nprognoze],0),\"\"),\"\")","v":""},{"$f":"IFERROR(IF(Potenciālā_klienta_dati[[#This Row],[Prognoze \nbeidzas]] <>\"\",IF(Potenciālā_klienta_dati[[#This Row],[Prognoze \nbeidzas]] = \"Septembra\",Potenciālā_klienta_dati[Svērtā \nprognoze],0),\"\"),\"\")","v":""},{"$f":"IFERROR(IF(Potenciālā_klienta_dati[[#This Row],[Prognoze \nbeidzas]] <>\"\",IF(Potenciālā_klienta_dati[[#This Row],[Prognoze \nbeidzas]] = \"Oktobra\",Potenciālā_klienta_dati[Svērtā \nprognoze],0),\"\"),\"\")","v":""},{"$f":"IFERROR(IF(Potenciālā_klienta_dati[[#This Row],[Prognoze \nbeidzas]] <>\"\",IF(Potenciālā_klienta_dati[[#This Row],[Prognoze \nbeidzas]] = \"Novembra\",Potenciālā_klienta_dati[Svērtā \nprognoze],0),\"\"),\"\")","v":""},{"$f":"IFERROR(IF(Potenciālā_klienta_dati[[#This Row],[Prognoze \nbeidzas]] <>\"\",IF(Potenciālā_klienta_dati[[#This Row],[Prognoze \nbeidzas]] = \"Decembra\",Potenciālā_klienta_dati[Svērtā \nprognoze],0),\"\"),\"\")","v":""}]
[null,{"$f":"IFERROR(IF(AND(Potenciālā_klienta_dati[[#This Row],[Potenciālā klienta vārds/nosaukums]] <> \"\", ROW(Pārdošanas_prognozes[Potenciālā klienta vārds/nosaukums])<>Pēdējais_ieraksts),Potenciālā_klienta_dati[Potenciālā klienta vārds/nosaukums], \"\"),\"\")","v":""},{"$f":"IFERROR(IF(Potenciālā_klienta_dati[[#This Row],[Prognoze \nbeidzas]] <>\"\",IF(Potenciālā_klienta_dati[[#This Row],[Prognoze \nbeidzas]]= \"Janvāris\",Potenciālā_klienta_dati[Svērtā \nprognoze],0),\"\"),\"\")","v":""},{"$f":"IFERROR(IF(Potenciālā_klienta_dati[[#This Row],[Prognoze \nbeidzas]] <>\"\",IF(Potenciālā_klienta_dati[[#This Row],[Prognoze \nbeidzas]] = \"Februāris\",Potenciālā_klienta_dati[Svērtā \nprognoze],0),\"\"),\"\")","v":""},{"$f":"IFERROR(IF(Potenciālā_klienta_dati[[#This Row],[Prognoze \nbeidzas]] <>\"\",IF(Potenciālā_klienta_dati[[#This Row],[Prognoze \nbeidzas]] = \"Marts\",Potenciālā_klienta_dati[Svērtā \nprognoze],0),\"\"),\"\")","v":""},{"$f":"IFERROR(IF(Potenciālā_klienta_dati[[#This Row],[Prognoze \nbeidzas]] <>\"\",IF(Potenciālā_klienta_dati[[#This Row],[Prognoze \nbeidzas]] = \"Aprīļa\",Potenciālā_klienta_dati[Svērtā \nprognoze],0),\"\"),\"\")","v":""},{"$f":"IFERROR(IF(Potenciālā_klienta_dati[[#This Row],[Prognoze \nbeidzas]] <>\"\",IF(Potenciālā_klienta_dati[[#This Row],[Prognoze \nbeidzas]] = \"Maija\",Potenciālā_klienta_dati[Svērtā \nprognoze],0),\"\"),\"\")","v":""},{"$f":"IFERROR(IF(Potenciālā_klienta_dati[[#This Row],[Prognoze \nbeidzas]] <>\"\",IF(Potenciālā_klienta_dati[[#This Row],[Prognoze \nbeidzas]] = \"Jūnija\",Potenciālā_klienta_dati[Svērtā \nprognoze],0),\"\"),\"\")","v":""},{"$f":"IFERROR(IF(Potenciālā_klienta_dati[[#This Row],[Prognoze \nbeidzas]] <>\"\",IF(Potenciālā_klienta_dati[[#This Row],[Prognoze \nbeidzas]] = \"July\",Potenciālā_klienta_dati[Svērtā \nprognoze],0),\"\"),\"\")","v":""},{"$f":"IFERROR(IF(Potenciālā_klienta_dati[[#This Row],[Prognoze \nbeidzas]] <>\"\",IF(Potenciālā_klienta_dati[[#This Row],[Prognoze \nbeidzas]] = \"Augusta\",Potenciālā_klienta_dati[Svērtā \nprognoze],0),\"\"),\"\")","v":""},{"$f":"IFERROR(IF(Potenciālā_klienta_dati[[#This Row],[Prognoze \nbeidzas]] <>\"\",IF(Potenciālā_klienta_dati[[#This Row],[Prognoze \nbeidzas]] = \"Septembra\",Potenciālā_klienta_dati[Svērtā \nprognoze],0),\"\"),\"\")","v":""},{"$f":"IFERROR(IF(Potenciālā_klienta_dati[[#This Row],[Prognoze \nbeidzas]] <>\"\",IF(Potenciālā_klienta_dati[[#This Row],[Prognoze \nbeidzas]] = \"Oktobra\",Potenciālā_klienta_dati[Svērtā \nprognoze],0),\"\"),\"\")","v":""},{"$f":"IFERROR(IF(Potenciālā_klienta_dati[[#This Row],[Prognoze \nbeidzas]] <>\"\",IF(Potenciālā_klienta_dati[[#This Row],[Prognoze \nbeidzas]] = \"Novembra\",Potenciālā_klienta_dati[Svērtā \nprognoze],0),\"\"),\"\")","v":""},{"$f":"IFERROR(IF(Potenciālā_klienta_dati[[#This Row],[Prognoze \nbeidzas]] <>\"\",IF(Potenciālā_klienta_dati[[#This Row],[Prognoze \nbeidzas]] = \"Decembra\",Potenciālā_klienta_dati[Svērtā \nprognoze],0),\"\"),\"\")","v":""}]
[null,{"$f":"IFERROR(IF(AND(Potenciālā_klienta_dati[[#This Row],[Potenciālā klienta vārds/nosaukums]] <> \"\", ROW(Pārdošanas_prognozes[Potenciālā klienta vārds/nosaukums])<>Pēdējais_ieraksts),Potenciālā_klienta_dati[Potenciālā klienta vārds/nosaukums], \"\"),\"\")","v":""},{"$f":"IFERROR(IF(Potenciālā_klienta_dati[[#This Row],[Prognoze \nbeidzas]] <>\"\",IF(Potenciālā_klienta_dati[[#This Row],[Prognoze \nbeidzas]]= \"Janvāris\",Potenciālā_klienta_dati[Svērtā \nprognoze],0),\"\"),\"\")","v":""},{"$f":"IFERROR(IF(Potenciālā_klienta_dati[[#This Row],[Prognoze \nbeidzas]] <>\"\",IF(Potenciālā_klienta_dati[[#This Row],[Prognoze \nbeidzas]] = \"Februāris\",Potenciālā_klienta_dati[Svērtā \nprognoze],0),\"\"),\"\")","v":""},{"$f":"IFERROR(IF(Potenciālā_klienta_dati[[#This Row],[Prognoze \nbeidzas]] <>\"\",IF(Potenciālā_klienta_dati[[#This Row],[Prognoze \nbeidzas]] = \"Marts\",Potenciālā_klienta_dati[Svērtā \nprognoze],0),\"\"),\"\")","v":""},{"$f":"IFERROR(IF(Potenciālā_klienta_dati[[#This Row],[Prognoze \nbeidzas]] <>\"\",IF(Potenciālā_klienta_dati[[#This Row],[Prognoze \nbeidzas]] = \"Aprīļa\",Potenciālā_klienta_dati[Svērtā \nprognoze],0),\"\"),\"\")","v":""},{"$f":"IFERROR(IF(Potenciālā_klienta_dati[[#This Row],[Prognoze \nbeidzas]] <>\"\",IF(Potenciālā_klienta_dati[[#This Row],[Prognoze \nbeidzas]] = \"Maija\",Potenciālā_klienta_dati[Svērtā \nprognoze],0),\"\"),\"\")","v":""},{"$f":"IFERROR(IF(Potenciālā_klienta_dati[[#This Row],[Prognoze \nbeidzas]] <>\"\",IF(Potenciālā_klienta_dati[[#This Row],[Prognoze \nbeidzas]] = \"Jūnija\",Potenciālā_klienta_dati[Svērtā \nprognoze],0),\"\"),\"\")","v":""},{"$f":"IFERROR(IF(Potenciālā_klienta_dati[[#This Row],[Prognoze \nbeidzas]] <>\"\",IF(Potenciālā_klienta_dati[[#This Row],[Prognoze \nbeidzas]] = \"July\",Potenciālā_klienta_dati[Svērtā \nprognoze],0),\"\"),\"\")","v":""},{"$f":"IFERROR(IF(Potenciālā_klienta_dati[[#This Row],[Prognoze \nbeidzas]] <>\"\",IF(Potenciālā_klienta_dati[[#This Row],[Prognoze \nbeidzas]] = \"Augusta\",Potenciālā_klienta_dati[Svērtā \nprognoze],0),\"\"),\"\")","v":""},{"$f":"IFERROR(IF(Potenciālā_klienta_dati[[#This Row],[Prognoze \nbeidzas]] <>\"\",IF(Potenciālā_klienta_dati[[#This Row],[Prognoze \nbeidzas]] = \"Septembra\",Potenciālā_klienta_dati[Svērtā \nprognoze],0),\"\"),\"\")","v":""},{"$f":"IFERROR(IF(Potenciālā_klienta_dati[[#This Row],[Prognoze \nbeidzas]] <>\"\",IF(Potenciālā_klienta_dati[[#This Row],[Prognoze \nbeidzas]] = \"Oktobra\",Potenciālā_klienta_dati[Svērtā \nprognoze],0),\"\"),\"\")","v":""},{"$f":"IFERROR(IF(Potenciālā_klienta_dati[[#This Row],[Prognoze \nbeidzas]] <>\"\",IF(Potenciālā_klienta_dati[[#This Row],[Prognoze \nbeidzas]] = \"Novembra\",Potenciālā_klienta_dati[Svērtā \nprognoze],0),\"\"),\"\")","v":""},{"$f":"IFERROR(IF(Potenciālā_klienta_dati[[#This Row],[Prognoze \nbeidzas]] <>\"\",IF(Potenciālā_klienta_dati[[#This Row],[Prognoze \nbeidzas]] = \"Decembra\",Potenciālā_klienta_dati[Svērtā \nprognoze],0),\"\"),\"\")","v":""}]
[null,{"$f":"IFERROR(IF(AND(Potenciālā_klienta_dati[[#This Row],[Potenciālā klienta vārds/nosaukums]] <> \"\", ROW(Pārdošanas_prognozes[Potenciālā klienta vārds/nosaukums])<>Pēdējais_ieraksts),Potenciālā_klienta_dati[Potenciālā klienta vārds/nosaukums], \"\"),\"\")","v":""},{"$f":"IFERROR(IF(Potenciālā_klienta_dati[[#This Row],[Prognoze \nbeidzas]] <>\"\",IF(Potenciālā_klienta_dati[[#This Row],[Prognoze \nbeidzas]]= \"Janvāris\",Potenciālā_klienta_dati[Svērtā \nprognoze],0),\"\"),\"\")","v":""},{"$f":"IFERROR(IF(Potenciālā_klienta_dati[[#This Row],[Prognoze \nbeidzas]] <>\"\",IF(Potenciālā_klienta_dati[[#This Row],[Prognoze \nbeidzas]] = \"Februāris\",Potenciālā_klienta_dati[Svērtā \nprognoze],0),\"\"),\"\")","v":""},{"$f":"IFERROR(IF(Potenciālā_klienta_dati[[#This Row],[Prognoze \nbeidzas]] <>\"\",IF(Potenciālā_klienta_dati[[#This Row],[Prognoze \nbeidzas]] = \"Marts\",Potenciālā_klienta_dati[Svērtā \nprognoze],0),\"\"),\"\")","v":""},{"$f":"IFERROR(IF(Potenciālā_klienta_dati[[#This Row],[Prognoze \nbeidzas]] <>\"\",IF(Potenciālā_klienta_dati[[#This Row],[Prognoze \nbeidzas]] = \"Aprīļa\",Potenciālā_klienta_dati[Svērtā \nprognoze],0),\"\"),\"\")","v":""},{"$f":"IFERROR(IF(Potenciālā_klienta_dati[[#This Row],[Prognoze \nbeidzas]] <>\"\",IF(Potenciālā_klienta_dati[[#This Row],[Prognoze \nbeidzas]] = \"Maija\",Potenciālā_klienta_dati[Svērtā \nprognoze],0),\"\"),\"\")","v":""},{"$f":"IFERROR(IF(Potenciālā_klienta_dati[[#This Row],[Prognoze \nbeidzas]] <>\"\",IF(Potenciālā_klienta_dati[[#This Row],[Prognoze \nbeidzas]] = \"Jūnija\",Potenciālā_klienta_dati[Svērtā \nprognoze],0),\"\"),\"\")","v":""},{"$f":"IFERROR(IF(Potenciālā_klienta_dati[[#This Row],[Prognoze \nbeidzas]] <>\"\",IF(Potenciālā_klienta_dati[[#This Row],[Prognoze \nbeidzas]] = \"July\",Potenciālā_klienta_dati[Svērtā \nprognoze],0),\"\"),\"\")","v":""},{"$f":"IFERROR(IF(Potenciālā_klienta_dati[[#This Row],[Prognoze \nbeidzas]] <>\"\",IF(Potenciālā_klienta_dati[[#This Row],[Prognoze \nbeidzas]] = \"Augusta\",Potenciālā_klienta_dati[Svērtā \nprognoze],0),\"\"),\"\")","v":""},{"$f":"IFERROR(IF(Potenciālā_klienta_dati[[#This Row],[Prognoze \nbeidzas]] <>\"\",IF(Potenciālā_klienta_dati[[#This Row],[Prognoze \nbeidzas]] = \"Septembra\",Potenciālā_klienta_dati[Svērtā \nprognoze],0),\"\"),\"\")","v":""},{"$f":"IFERROR(IF(Potenciālā_klienta_dati[[#This Row],[Prognoze \nbeidzas]] <>\"\",IF(Potenciālā_klienta_dati[[#This Row],[Prognoze \nbeidzas]] = \"Oktobra\",Potenciālā_klienta_dati[Svērtā \nprognoze],0),\"\"),\"\")","v":""},{"$f":"IFERROR(IF(Potenciālā_klienta_dati[[#This Row],[Prognoze \nbeidzas]] <>\"\",IF(Potenciālā_klienta_dati[[#This Row],[Prognoze \nbeidzas]] = \"Novembra\",Potenciālā_klienta_dati[Svērtā \nprognoze],0),\"\"),\"\")","v":""},{"$f":"IFERROR(IF(Potenciālā_klienta_dati[[#This Row],[Prognoze \nbeidzas]] <>\"\",IF(Potenciālā_klienta_dati[[#This Row],[Prognoze \nbeidzas]] = \"Decembra\",Potenciālā_klienta_dati[Svērtā \nprognoze],0),\"\"),\"\")","v":""}]
[null,{"$f":"IFERROR(IF(AND(Potenciālā_klienta_dati[[#This Row],[Potenciālā klienta vārds/nosaukums]] <> \"\", ROW(Pārdošanas_prognozes[Potenciālā klienta vārds/nosaukums])<>Pēdējais_ieraksts),Potenciālā_klienta_dati[Potenciālā klienta vārds/nosaukums], \"\"),\"\")","v":""},{"$f":"IFERROR(IF(Potenciālā_klienta_dati[[#This Row],[Prognoze \nbeidzas]] <>\"\",IF(Potenciālā_klienta_dati[[#This Row],[Prognoze \nbeidzas]]= \"Janvāris\",Potenciālā_klienta_dati[Svērtā \nprognoze],0),\"\"),\"\")","v":""},{"$f":"IFERROR(IF(Potenciālā_klienta_dati[[#This Row],[Prognoze \nbeidzas]] <>\"\",IF(Potenciālā_klienta_dati[[#This Row],[Prognoze \nbeidzas]] = \"Februāris\",Potenciālā_klienta_dati[Svērtā \nprognoze],0),\"\"),\"\")","v":""},{"$f":"IFERROR(IF(Potenciālā_klienta_dati[[#This Row],[Prognoze \nbeidzas]] <>\"\",IF(Potenciālā_klienta_dati[[#This Row],[Prognoze \nbeidzas]] = \"Marts\",Potenciālā_klienta_dati[Svērtā \nprognoze],0),\"\"),\"\")","v":""},{"$f":"IFERROR(IF(Potenciālā_klienta_dati[[#This Row],[Prognoze \nbeidzas]] <>\"\",IF(Potenciālā_klienta_dati[[#This Row],[Prognoze \nbeidzas]] = \"Aprīļa\",Potenciālā_klienta_dati[Svērtā \nprognoze],0),\"\"),\"\")","v":""},{"$f":"IFERROR(IF(Potenciālā_klienta_dati[[#This Row],[Prognoze \nbeidzas]] <>\"\",IF(Potenciālā_klienta_dati[[#This Row],[Prognoze \nbeidzas]] = \"Maija\",Potenciālā_klienta_dati[Svērtā \nprognoze],0),\"\"),\"\")","v":""},{"$f":"IFERROR(IF(Potenciālā_klienta_dati[[#This Row],[Prognoze \nbeidzas]] <>\"\",IF(Potenciālā_klienta_dati[[#This Row],[Prognoze \nbeidzas]] = \"Jūnija\",Potenciālā_klienta_dati[Svērtā \nprognoze],0),\"\"),\"\")","v":""},{"$f":"IFERROR(IF(Potenciālā_klienta_dati[[#This Row],[Prognoze \nbeidzas]] <>\"\",IF(Potenciālā_klienta_dati[[#This Row],[Prognoze \nbeidzas]] = \"July\",Potenciālā_klienta_dati[Svērtā \nprognoze],0),\"\"),\"\")","v":""},{"$f":"IFERROR(IF(Potenciālā_klienta_dati[[#This Row],[Prognoze \nbeidzas]] <>\"\",IF(Potenciālā_klienta_dati[[#This Row],[Prognoze \nbeidzas]] = \"Augusta\",Potenciālā_klienta_dati[Svērtā \nprognoze],0),\"\"),\"\")","v":""},{"$f":"IFERROR(IF(Potenciālā_klienta_dati[[#This Row],[Prognoze \nbeidzas]] <>\"\",IF(Potenciālā_klienta_dati[[#This Row],[Prognoze \nbeidzas]] = \"Septembra\",Potenciālā_klienta_dati[Svērtā \nprognoze],0),\"\"),\"\")","v":""},{"$f":"IFERROR(IF(Potenciālā_klienta_dati[[#This Row],[Prognoze \nbeidzas]] <>\"\",IF(Potenciālā_klienta_dati[[#This Row],[Prognoze \nbeidzas]] = \"Oktobra\",Potenciālā_klienta_dati[Svērtā \nprognoze],0),\"\"),\"\")","v":""},{"$f":"IFERROR(IF(Potenciālā_klienta_dati[[#This Row],[Prognoze \nbeidzas]] <>\"\",IF(Potenciālā_klienta_dati[[#This Row],[Prognoze \nbeidzas]] = \"Novembra\",Potenciālā_klienta_dati[Svērtā \nprognoze],0),\"\"),\"\")","v":""},{"$f":"IFERROR(IF(Potenciālā_klienta_dati[[#This Row],[Prognoze \nbeidzas]] <>\"\",IF(Potenciālā_klienta_dati[[#This Row],[Prognoze \nbeidzas]] = \"Decembra\",Potenciālā_klienta_dati[Svērtā \nprognoze],0),\"\"),\"\")","v":""}]
[null,{"$f":"IFERROR(IF(AND(Potenciālā_klienta_dati[[#This Row],[Potenciālā klienta vārds/nosaukums]] <> \"\", ROW(Pārdošanas_prognozes[Potenciālā klienta vārds/nosaukums])<>Pēdējais_ieraksts),Potenciālā_klienta_dati[Potenciālā klienta vārds/nosaukums], \"\"),\"\")","v":""},{"$f":"IFERROR(IF(Potenciālā_klienta_dati[[#This Row],[Prognoze \nbeidzas]] <>\"\",IF(Potenciālā_klienta_dati[[#This Row],[Prognoze \nbeidzas]]= \"Janvāris\",Potenciālā_klienta_dati[Svērtā \nprognoze],0),\"\"),\"\")","v":""},{"$f":"IFERROR(IF(Potenciālā_klienta_dati[[#This Row],[Prognoze \nbeidzas]] <>\"\",IF(Potenciālā_klienta_dati[[#This Row],[Prognoze \nbeidzas]] = \"Februāris\",Potenciālā_klienta_dati[Svērtā \nprognoze],0),\"\"),\"\")","v":""},{"$f":"IFERROR(IF(Potenciālā_klienta_dati[[#This Row],[Prognoze \nbeidzas]] <>\"\",IF(Potenciālā_klienta_dati[[#This Row],[Prognoze \nbeidzas]] = \"Marts\",Potenciālā_klienta_dati[Svērtā \nprognoze],0),\"\"),\"\")","v":""},{"$f":"IFERROR(IF(Potenciālā_klienta_dati[[#This Row],[Prognoze \nbeidzas]] <>\"\",IF(Potenciālā_klienta_dati[[#This Row],[Prognoze \nbeidzas]] = \"Aprīļa\",Potenciālā_klienta_dati[Svērtā \nprognoze],0),\"\"),\"\")","v":""},{"$f":"IFERROR(IF(Potenciālā_klienta_dati[[#This Row],[Prognoze \nbeidzas]] <>\"\",IF(Potenciālā_klienta_dati[[#This Row],[Prognoze \nbeidzas]] = \"Maija\",Potenciālā_klienta_dati[Svērtā \nprognoze],0),\"\"),\"\")","v":""},{"$f":"IFERROR(IF(Potenciālā_klienta_dati[[#This Row],[Prognoze \nbeidzas]] <>\"\",IF(Potenciālā_klienta_dati[[#This Row],[Prognoze \nbeidzas]] = \"Jūnija\",Potenciālā_klienta_dati[Svērtā \nprognoze],0),\"\"),\"\")","v":""},{"$f":"IFERROR(IF(Potenciālā_klienta_dati[[#This Row],[Prognoze \nbeidzas]] <>\"\",IF(Potenciālā_klienta_dati[[#This Row],[Prognoze \nbeidzas]] = \"July\",Potenciālā_klienta_dati[Svērtā \nprognoze],0),\"\"),\"\")","v":""},{"$f":"IFERROR(IF(Potenciālā_klienta_dati[[#This Row],[Prognoze \nbeidzas]] <>\"\",IF(Potenciālā_klienta_dati[[#This Row],[Prognoze \nbeidzas]] = \"Augusta\",Potenciālā_klienta_dati[Svērtā \nprognoze],0),\"\"),\"\")","v":""},{"$f":"IFERROR(IF(Potenciālā_klienta_dati[[#This Row],[Prognoze \nbeidzas]] <>\"\",IF(Potenciālā_klienta_dati[[#This Row],[Prognoze \nbeidzas]] = \"Septembra\",Potenciālā_klienta_dati[Svērtā \nprognoze],0),\"\"),\"\")","v":""},{"$f":"IFERROR(IF(Potenciālā_klienta_dati[[#This Row],[Prognoze \nbeidzas]] <>\"\",IF(Potenciālā_klienta_dati[[#This Row],[Prognoze \nbeidzas]] = \"Oktobra\",Potenciālā_klienta_dati[Svērtā \nprognoze],0),\"\"),\"\")","v":""},{"$f":"IFERROR(IF(Potenciālā_klienta_dati[[#This Row],[Prognoze \nbeidzas]] <>\"\",IF(Potenciālā_klienta_dati[[#This Row],[Prognoze \nbeidzas]] = \"Novembra\",Potenciālā_klienta_dati[Svērtā \nprognoze],0),\"\"),\"\")","v":""},{"$f":"IFERROR(IF(Potenciālā_klienta_dati[[#This Row],[Prognoze \nbeidzas]] <>\"\",IF(Potenciālā_klienta_dati[[#This Row],[Prognoze \nbeidzas]] = \"Decembra\",Potenciālā_klienta_dati[Svērtā \nprognoze],0),\"\"),\"\")","v":""}]
[null,{"$f":"IFERROR(IF(AND(Potenciālā_klienta_dati[[#This Row],[Potenciālā klienta vārds/nosaukums]] <> \"\", ROW(Pārdošanas_prognozes[Potenciālā klienta vārds/nosaukums])<>Pēdējais_ieraksts),Potenciālā_klienta_dati[Potenciālā klienta vārds/nosaukums], \"\"),\"\")","v":""},{"$f":"IFERROR(IF(Potenciālā_klienta_dati[[#This Row],[Prognoze \nbeidzas]] <>\"\",IF(Potenciālā_klienta_dati[[#This Row],[Prognoze \nbeidzas]]= \"Janvāris\",Potenciālā_klienta_dati[Svērtā \nprognoze],0),\"\"),\"\")","v":""},{"$f":"IFERROR(IF(Potenciālā_klienta_dati[[#This Row],[Prognoze \nbeidzas]] <>\"\",IF(Potenciālā_klienta_dati[[#This Row],[Prognoze \nbeidzas]] = \"Februāris\",Potenciālā_klienta_dati[Svērtā \nprognoze],0),\"\"),\"\")","v":""},{"$f":"IFERROR(IF(Potenciālā_klienta_dati[[#This Row],[Prognoze \nbeidzas]] <>\"\",IF(Potenciālā_klienta_dati[[#This Row],[Prognoze \nbeidzas]] = \"Marts\",Potenciālā_klienta_dati[Svērtā \nprognoze],0),\"\"),\"\")","v":""},{"$f":"IFERROR(IF(Potenciālā_klienta_dati[[#This Row],[Prognoze \nbeidzas]] <>\"\",IF(Potenciālā_klienta_dati[[#This Row],[Prognoze \nbeidzas]] = \"Aprīļa\",Potenciālā_klienta_dati[Svērtā \nprognoze],0),\"\"),\"\")","v":""},{"$f":"IFERROR(IF(Potenciālā_klienta_dati[[#This Row],[Prognoze \nbeidzas]] <>\"\",IF(Potenciālā_klienta_dati[[#This Row],[Prognoze \nbeidzas]] = \"Maija\",Potenciālā_klienta_dati[Svērtā \nprognoze],0),\"\"),\"\")","v":""},{"$f":"IFERROR(IF(Potenciālā_klienta_dati[[#This Row],[Prognoze \nbeidzas]] <>\"\",IF(Potenciālā_klienta_dati[[#This Row],[Prognoze \nbeidzas]] = \"Jūnija\",Potenciālā_klienta_dati[Svērtā \nprognoze],0),\"\"),\"\")","v":""},{"$f":"IFERROR(IF(Potenciālā_klienta_dati[[#This Row],[Prognoze \nbeidzas]] <>\"\",IF(Potenciālā_klienta_dati[[#This Row],[Prognoze \nbeidzas]] = \"July\",Potenciālā_klienta_dati[Svērtā \nprognoze],0),\"\"),\"\")","v":""},{"$f":"IFERROR(IF(Potenciālā_klienta_dati[[#This Row],[Prognoze \nbeidzas]] <>\"\",IF(Potenciālā_klienta_dati[[#This Row],[Prognoze \nbeidzas]] = \"Augusta\",Potenciālā_klienta_dati[Svērtā \nprognoze],0),\"\"),\"\")","v":""},{"$f":"IFERROR(IF(Potenciālā_klienta_dati[[#This Row],[Prognoze \nbeidzas]] <>\"\",IF(Potenciālā_klienta_dati[[#This Row],[Prognoze \nbeidzas]] = \"Septembra\",Potenciālā_klienta_dati[Svērtā \nprognoze],0),\"\"),\"\")","v":""},{"$f":"IFERROR(IF(Potenciālā_klienta_dati[[#This Row],[Prognoze \nbeidzas]] <>\"\",IF(Potenciālā_klienta_dati[[#This Row],[Prognoze \nbeidzas]] = \"Oktobra\",Potenciālā_klienta_dati[Svērtā \nprognoze],0),\"\"),\"\")","v":""},{"$f":"IFERROR(IF(Potenciālā_klienta_dati[[#This Row],[Prognoze \nbeidzas]] <>\"\",IF(Potenciālā_klienta_dati[[#This Row],[Prognoze \nbeidzas]] = \"Novembra\",Potenciālā_klienta_dati[Svērtā \nprognoze],0),\"\"),\"\")","v":""},{"$f":"IFERROR(IF(Potenciālā_klienta_dati[[#This Row],[Prognoze \nbeidzas]] <>\"\",IF(Potenciālā_klienta_dati[[#This Row],[Prognoze \nbeidzas]] = \"Decembra\",Potenciālā_klienta_dati[Svērtā \nprognoze],0),\"\"),\"\")","v":""}]
[null,{"$f":"IFERROR(IF(AND(Potenciālā_klienta_dati[[#This Row],[Potenciālā klienta vārds/nosaukums]] <> \"\", ROW(Pārdošanas_prognozes[Potenciālā klienta vārds/nosaukums])<>Pēdējais_ieraksts),Potenciālā_klienta_dati[Potenciālā klienta vārds/nosaukums], \"\"),\"\")","v":""},{"$f":"IFERROR(IF(Potenciālā_klienta_dati[[#This Row],[Prognoze \nbeidzas]] <>\"\",IF(Potenciālā_klienta_dati[[#This Row],[Prognoze \nbeidzas]]= \"Janvāris\",Potenciālā_klienta_dati[Svērtā \nprognoze],0),\"\"),\"\")","v":""},{"$f":"IFERROR(IF(Potenciālā_klienta_dati[[#This Row],[Prognoze \nbeidzas]] <>\"\",IF(Potenciālā_klienta_dati[[#This Row],[Prognoze \nbeidzas]] = \"Februāris\",Potenciālā_klienta_dati[Svērtā \nprognoze],0),\"\"),\"\")","v":""},{"$f":"IFERROR(IF(Potenciālā_klienta_dati[[#This Row],[Prognoze \nbeidzas]] <>\"\",IF(Potenciālā_klienta_dati[[#This Row],[Prognoze \nbeidzas]] = \"Marts\",Potenciālā_klienta_dati[Svērtā \nprognoze],0),\"\"),\"\")","v":""},{"$f":"IFERROR(IF(Potenciālā_klienta_dati[[#This Row],[Prognoze \nbeidzas]] <>\"\",IF(Potenciālā_klienta_dati[[#This Row],[Prognoze \nbeidzas]] = \"Aprīļa\",Potenciālā_klienta_dati[Svērtā \nprognoze],0),\"\"),\"\")","v":""},{"$f":"IFERROR(IF(Potenciālā_klienta_dati[[#This Row],[Prognoze \nbeidzas]] <>\"\",IF(Potenciālā_klienta_dati[[#This Row],[Prognoze \nbeidzas]] = \"Maija\",Potenciālā_klienta_dati[Svērtā \nprognoze],0),\"\"),\"\")","v":""},{"$f":"IFERROR(IF(Potenciālā_klienta_dati[[#This Row],[Prognoze \nbeidzas]] <>\"\",IF(Potenciālā_klienta_dati[[#This Row],[Prognoze \nbeidzas]] = \"Jūnija\",Potenciālā_klienta_dati[Svērtā \nprognoze],0),\"\"),\"\")","v":""},{"$f":"IFERROR(IF(Potenciālā_klienta_dati[[#This Row],[Prognoze \nbeidzas]] <>\"\",IF(Potenciālā_klienta_dati[[#This Row],[Prognoze \nbeidzas]] = \"July\",Potenciālā_klienta_dati[Svērtā \nprognoze],0),\"\"),\"\")","v":""},{"$f":"IFERROR(IF(Potenciālā_klienta_dati[[#This Row],[Prognoze \nbeidzas]] <>\"\",IF(Potenciālā_klienta_dati[[#This Row],[Prognoze \nbeidzas]] = \"Augusta\",Potenciālā_klienta_dati[Svērtā \nprognoze],0),\"\"),\"\")","v":""},{"$f":"IFERROR(IF(Potenciālā_klienta_dati[[#This Row],[Prognoze \nbeidzas]] <>\"\",IF(Potenciālā_klienta_dati[[#This Row],[Prognoze \nbeidzas]] = \"Septembra\",Potenciālā_klienta_dati[Svērtā \nprognoze],0),\"\"),\"\")","v":""},{"$f":"IFERROR(IF(Potenciālā_klienta_dati[[#This Row],[Prognoze \nbeidzas]] <>\"\",IF(Potenciālā_klienta_dati[[#This Row],[Prognoze \nbeidzas]] = \"Oktobra\",Potenciālā_klienta_dati[Svērtā \nprognoze],0),\"\"),\"\")","v":""},{"$f":"IFERROR(IF(Potenciālā_klienta_dati[[#This Row],[Prognoze \nbeidzas]] <>\"\",IF(Potenciālā_klienta_dati[[#This Row],[Prognoze \nbeidzas]] = \"Novembra\",Potenciālā_klienta_dati[Svērtā \nprognoze],0),\"\"),\"\")","v":""},{"$f":"IFERROR(IF(Potenciālā_klienta_dati[[#This Row],[Prognoze \nbeidzas]] <>\"\",IF(Potenciālā_klienta_dati[[#This Row],[Prognoze \nbeidzas]] = \"Decembra\",Potenciālā_klienta_dati[Svērtā \nprognoze],0),\"\"),\"\")","v":""}]
[null,"Kopsumma",{"$f":"SUBTOTAL(109,Pārdošanas_prognozes[Janvāris \nprognoze])","v":{"v":270000,"d":"270,000 EUR"}},{"$f":"SUBTOTAL(109,Pārdošanas_prognozes[Februāra \nprognoze])","v":{"v":20000,"d":"20,000 EUR"}},{"$f":"SUBTOTAL(109,Pārdošanas_prognozes[Marta \nprognoze])","v":{"v":20000,"d":"20,000 EUR"}},{"$f":"SUBTOTAL(109,Pārdošanas_prognozes[Aprīļa \nprognoze])","v":{"v":0,"d":"0 EUR"}},{"$f":"SUBTOTAL(109,Pārdošanas_prognozes[Maija \nprognoze])","v":{"v":0,"d":"0 EUR"}},{"$f":"SUBTOTAL(109,Pārdošanas_prognozes[Jūnija \nprognoze])","v":{"v":0,"d":"0 EUR"}},{"$f":"SUBTOTAL(109,Pārdošanas_prognozes[Jūlija prognoze])","v":{"v":0,"d":"0 EUR"}},{"$f":"SUBTOTAL(109,Pārdošanas_prognozes[Augusta \nprognoze])","v":{"v":0,"d":"0 EUR"}},{"$f":"SUBTOTAL(109,Pārdošanas_prognozes[Septembra \nprognoze])","v":{"v":0,"d":"0 EUR"}},{"$f":"SUBTOTAL(109,Pārdošanas_prognozes[Oktobra \nprognoze])","v":{"v":0,"d":"0 EUR"}},{"$f":"SUBTOTAL(109,Pārdošanas_prognozes[Novembra \nprognoze])","v":{"v":0,"d":"0 EUR"}},{"$f":"SUBTOTAL(109,Pārdošanas_prognozes[Decembra \nprognoze])","v":{"v":0,"d":"0 EUR"}}]
[null,"Kumulatīvā kopsumma",{"$f":"C20","v":{"v":270000,"d":"270,000 EUR"}},{"$f":"C21+D20","v":{"v":290000,"d":"290,000 EUR"}},{"$f":"D21+E20","v":{"v":310000,"d":"310,000 EUR"}},{"$f":"E21+F20","v":{"v":310000,"d":"310,000 EUR"}},{"$f":"F21+G20","v":{"v":310000,"d":"310,000 EUR"}},{"$f":"G21+H20","v":{"v":310000,"d":"310,000 EUR"}},{"$f":"H21+I20","v":{"v":310000,"d":"310,000 EUR"}},{"$f":"I21+J20","v":{"v":310000,"d":"310,000 EUR"}},{"$f":"J21+K20","v":{"v":310000,"d":"310,000 EUR"}},{"$f":"K21+L20","v":{"v":310000,"d":"310,000 EUR"}},{"$f":"L21+M20","v":{"v":310000,"d":"310,000 EUR"}},{"$f":"M21+N20","v":{"v":310000,"d":"310,000 EUR"}}]

{"sheet":"Mēneša svērtā prognoze","index":2,"n_rows":3,"n_cols":2,"rows_kept":3}
[null,{"$f":"Uzņēmuma_nosaukums","v":"Uzņēmuma nosaukums"}]
[null,"Mēneša svērtā prognoze"]
[null," "]